{"text_format":"3","workbook":"xlsx","n_sheets":1,"sheets":["Протокол ШЭ ВОШ по предмету"],"not_rendered":{"defined_names":1},"read":"whole","date_system":"1900"}

{"sheet":"Протокол ШЭ ВОШ по предмету","index":0,"n_rows":216,"n_cols":15,"rows_kept":216}
["№","Фамилия","Имя","Отчество","Дата рождения","Пол","Участник с ОВЗ (да/нет)","Класс обучения","Класс участия","Балл","Максимальный балл","Статус","Призёр муниципального этапа прошлого года","ФИО учителя","Место работы учителя"]
[1,"Исангильдина","Руфина","Наилевна","2011-09-16","Ж","нет",5,5,25,40,{"$f":"IF(J:J < 20,\"участник\",IF(J:J < 30, \"Призёр\",IF(J:J < 41, \"Победитель\")))","v":"Призёр"},"нет","Пузикова Ольга Сергеевна","МБОУ \"Гимназия №32\", Нижнекамск"]
[2,"Лапко","Даниил","Романович","2011-03-27","М","нет",5,5,4,40,{"$f":"IF(J:J < 20,\"участник\",IF(J:J < 30, \"Призёр\",IF(J:J < 41, \"Победитель\")))","v":"участник"},"нет","Пузикова Ольга Сергеевна","МБОУ \"Гимназия №32\", Нижнекамск"]
[3,"Лисин","Тимофей","Николаевич","2011-11-01","М","нет",5,5,7,40,{"$f":"IF(J:J < 20,\"участник\",IF(J:J < 30, \"Призёр\",IF(J:J < 41, \"Победитель\")))","v":"участник"},"нет","Пузикова Ольга Сергеевна","МБОУ \"Гимназия №32\", Нижнекамск"]
[4,"Петрунина","Софья","Сергеевна","2010-12-11","Ж","нет",5,5,14,40,{"$f":"IF(J:J < 20,\"участник\",IF(J:J < 30, \"Призёр\",IF(J:J < 41, \"Победитель\")))","v":"участник"},"нет","Пузикова Ольга Сергеевна","МБОУ \"Гимназия №32\", Нижнекамск"]
[5,"Поликарпов","Никита","Максимович","2011-05-18","М","нет",5,5,15,40,{"$f":"IF(J:J < 20,\"участник\",IF(J:J < 30, \"Призёр\",IF(J:J < 41, \"Победитель\")))","v":"участник"},"нет","Пузикова Ольга Сергеевна","МБОУ \"Гимназия №32\", Нижнекамск"]
[6,"Порецкова","Ева","Анатольевна","2011-08-20","Ж","нет",5,5,18,40,{"$f":"IF(J:J < 20,\"участник\",IF(J:J < 30, \"Призёр\",IF(J:J < 41, \"Победитель\")))","v":"участник"},"нет","Пузикова Ольга Сергеевна","МБОУ \"Гимназия №32\", Нижнекамск"]
[7,"Ражев","Матвей","Денисович","2011-05-12","М","нет",5,5,6,40,{"$f":"IF(J:J < 20,\"участник\",IF(J:J < 30, \"Призёр\",IF(J:J < 41, \"Победитель\")))","v":"участник"},"нет","Пузикова Ольга Сергеевна","МБОУ \"Гимназия №32\", Нижнекамск"]
[8,"Царёва","Мирослава","Анатольевна","2011-09-26","Ж","нет",5,5,10,40,{"$f":"IF(J:J < 20,\"участник\",IF(J:J < 30, \"Призёр\",IF(J:J < 41, \"Победитель\")))","v":"участник"},"нет","Пузикова Ольга Сергеевна","МБОУ \"Гимназия №32\", Нижнекамск"]
[9,"Гильмутдинов","Амир","Айнурович","25.09.2010","М","нет",6,6,15,40,{"$f":"IF(J:J < 20,\"участник\",IF(J:J < 30, \"Призёр\",IF(J:J < 41, \"Победитель\")))","v":"участник"},"нет","Пузикова Ольга Сергеевна","МБОУ \"Гимназия №32\", Нижнекамск"]
[10,"Аминов","Руслан","Фанисович","08.03.2010","М","нет",6,6,0,40,{"$f":"IF(J:J < 20,\"участник\",IF(J:J < 30, \"Призёр\",IF(J:J < 41, \"Победитель\")))","v":"участник"},"нет","Никитина Кристина Сергеевеа","МБОУ \"Гимназия №32\", Нижнекамск"]
[11,"Баталкина","Мирослава","Артемовна","2011-01-30","Ж","нет",6,6,7,40,{"$f":"IF(J:J < 20,\"участник\",IF(J:J < 30, \"Призёр\",IF(J:J < 41, \"Победитель\")))","v":"участник"},"нет","Никитина Кристина Сергеевеа","МБОУ \"Гимназия №32\", Нижнекамск"]
[12,"Гафиятуллина","Амиля","Маратовна","2010-12-06","Ж","нет",6,6,0,40,{"$f":"IF(J:J < 20,\"участник\",IF(J:J < 30, \"Призёр\",IF(J:J < 41, \"Победитель\")))","v":"участник"},"нет","Никитина Кристина Сергеевеа","МБОУ \"Гимназия №32\", Нижнекамск"]
[13,"Гильфанов","Марат","Рамилевич","2010-09-10","М","нет",6,6,4,40,{"$f":"IF(J:J < 20,\"участник\",IF(J:J < 30, \"Призёр\",IF(J:J < 41, \"Победитель\")))","v":"участник"},"нет","Никитина Кристина Сергеевеа","МБОУ \"Гимназия №32\", Нижнекамск"]
[14,"Ибушев","Максим","Андреевич","2010-08-16","М","нет",6,6,11,40,{"$f":"IF(J:J < 20,\"участник\",IF(J:J < 30, \"Призёр\",IF(J:J < 41, \"Победитель\")))","v":"участник"},"нет","Никитина Кристина Сергеевеа","МБОУ \"Гимназия №32\", Нижнекамск"]
[15,"Иванихин","Артем","Олегович","2010-06-20","М","нет",6,6,2,40,{"$f":"IF(J:J < 20,\"участник\",IF(J:J < 30, \"Призёр\",IF(J:J < 41, \"Победитель\")))","v":"участник"},"нет","Никитина Кристина Сергеевеа","МБОУ \"Гимназия №32\", Нижнекамск"]
[16,"Карасева","Оксана","Антоновна","2010-04-01","Ж","нет",6,6,4,40,{"$f":"IF(J:J < 20,\"участник\",IF(J:J < 30, \"Призёр\",IF(J:J < 41, \"Победитель\")))","v":"участник"},"нет","Никитина Кристина Сергеевеа","МБОУ \"Гимназия №32\", Нижнекамск"]
[17,"Махмутов","Дамир","Рустемович","2010-06-09","М","нет",6,6,10,40,{"$f":"IF(J:J < 20,\"участник\",IF(J:J < 30, \"Призёр\",IF(J:J < 41, \"Победитель\")))","v":"участник"},"нет","Никитина Кристина Сергеевеа","МБОУ \"Гимназия №32\", Нижнекамск"]
[18,"Минеев","Илья","Витальевич","2010-07-11","М","нет",6,6,2,40,{"$f":"IF(J:J < 20,\"участник\",IF(J:J < 30, \"Призёр\",IF(J:J < 41, \"Победитель\")))","v":"участник"},"нет","Никитина Кристина Сергеевеа","МБОУ \"Гимназия №32\", Нижнекамск"]
[19,"Мисаилова","Екатерина","Сергеевна","2010-07-18","Ж","нет",6,6,13,40,{"$f":"IF(J:J < 20,\"участник\",IF(J:J < 30, \"Призёр\",IF(J:J < 41, \"Победитель\")))","v":"участник"},"нет","Никитина Кристина Сергеевеа","МБОУ \"Гимназия №32\", Нижнекамск"]
[20,"Муравьев","Ярослав","Максимович","2010-05-24","М","нет",6,6,9,40,{"$f":"IF(J:J < 20,\"участник\",IF(J:J < 30, \"Призёр\",IF(J:J < 41, \"Победитель\")))","v":"участник"},"нет","Никитина Кристина Сергеевеа","МБОУ \"Гимназия №32\", Нижнекамск"]
[21,"Мухарямов","Эмиль","Русланович","2010-03-11","М","нет",6,6,11,40,{"$f":"IF(J:J < 20,\"участник\",IF(J:J < 30, \"Призёр\",IF(J:J < 41, \"Победитель\")))","v":"участник"},"нет","Никитина Кристина Сергеевеа","МБОУ \"Гимназия №32\", Нижнекамск"]
[22,"Николаева","Алина","Игоревна","2009-12-14","Ж","нет",6,6,8,40,{"$f":"IF(J:J < 20,\"участник\",IF(J:J < 30, \"Призёр\",IF(J:J < 41, \"Победитель\")))","v":"участник"},"нет","Никитина Кристина Сергеевеа","МБОУ \"Гимназия №32\", Нижнекамск"]
[23,"Никонова","Виктория","Андреевна","2010-04-19","Ж","нет",6,6,8,40,{"$f":"IF(J:J < 20,\"участник\",IF(J:J < 30, \"Призёр\",IF(J:J < 41, \"Победитель\")))","v":"участник"},"нет","Никитина Кристина Сергеевеа","МБОУ \"Гимназия №32\", Нижнекамск"]
[24,"Нуруллина","Алия","Илхамовна","2009-11-26","Ж","нет",6,6,6,40,{"$f":"IF(J:J < 20,\"участник\",IF(J:J < 30, \"Призёр\",IF(J:J < 41, \"Победитель\")))","v":"участник"},"нет","Никитина Кристина Сергеевеа","МБОУ \"Гимназия №32\", Нижнекамск"]
[25,"Рахимова","Диля","Фанисовна ","2010-08-03","Ж","нет",6,6,8,40,{"$f":"IF(J:J < 20,\"участник\",IF(J:J < 30, \"Призёр\",IF(J:J < 41, \"Победитель\")))","v":"участник"},"нет","Никитина Кристина Сергеевеа","МБОУ \"Гимназия №32\", Нижнекамск"]
[26,"Сабиров","Рамазан","Альфисович","2010-06-18","М","нет",6,6,4,40,{"$f":"IF(J:J < 20,\"участник\",IF(J:J < 30, \"Призёр\",IF(J:J < 41, \"Победитель\")))","v":"участник"},"нет","Никитина Кристина Сергеевеа","МБОУ \"Гимназия №32\", Нижнекамск"]
[27,"Тутуров","Матвей","Алексеевич","2010-04-23","М","нет",6,6,6,40,{"$f":"IF(J:J < 20,\"участник\",IF(J:J < 30, \"Призёр\",IF(J:J < 41, \"Победитель\")))","v":"участник"},"нет","Никитина Кристина Сергеевеа","МБОУ \"Гимназия №32\", Нижнекамск"]
[28,"Федулин","Максим","Андреевич","2010-07-12","М","нет",6,6,9,40,{"$f":"IF(J:J < 20,\"участник\",IF(J:J < 30, \"Призёр\",IF(J:J < 41, \"Победитель\")))","v":"участник"},"нет","Никитина Кристина Сергеевеа","МБОУ \"Гимназия №32\", Нижнекамск"]
[29,"Хабибуллин","Альмир","Ранасович","2010-04-09","М","нет",6,6,6,40,{"$f":"IF(J:J < 20,\"участник\",IF(J:J < 30, \"Призёр\",IF(J:J < 41, \"Победитель\")))","v":"участник"},"нет","Никитина Кристина Сергеевеа","МБОУ \"Гимназия №32\", Нижнекамск"]
[30,"Чапков","Аслан","Русланович","2009-12-11","М","нет",6,6,6,40,{"$f":"IF(J:J < 20,\"участник\",IF(J:J < 30, \"Призёр\",IF(J:J < 41, \"Победитель\")))","v":"участник"},"нет","Никитина Кристина Сергеевеа","МБОУ \"Гимназия №32\", Нижнекамск"]
[31,"Шабрукова","Анастасия","Максимовна","15.10.1010","Ж","нет",6,6,2,40,{"$f":"IF(J:J < 20,\"участник\",IF(J:J < 30, \"Призёр\",IF(J:J < 41, \"Победитель\")))","v":"участник"},"нет","Никитина Кристина Сергеевеа","МБОУ \"Гимназия №32\", Нижнекамск"]
[32,"Бикмурзина","Анна","Николаевна","15.04.2010","Ж","нет",6,6,10,40,{"$f":"IF(J:J < 20,\"участник\",IF(J:J < 30, \"Призёр\",IF(J:J < 41, \"Победитель\")))","v":"участник"},"нет","Бадуртдинова Гульшат Ханафиевна","МБОУ \"Гимназия №32\", Нижнекамск"]
[33,"Васильева","Виктория","Юрьевна","22.03.2010","Ж","нет",6,6,25,40,{"$f":"IF(J:J < 20,\"участник\",IF(J:J < 30, \"Призёр\",IF(J:J < 41, \"Победитель\")))","v":"Призёр"},"нет","Бадуртдинова Гульшат Ханафиевна","МБОУ \"Гимназия №32\", Нижнекамск"]
[34,"Газизов","Самир","Ильнурович","04.11.2009","М","нет",6,6,9,40,{"$f":"IF(J:J < 20,\"участник\",IF(J:J < 30, \"Призёр\",IF(J:J < 41, \"Победитель\")))","v":"участник"},"нет","Бадуртдинова Гульшат Ханафиевна","МБОУ \"Гимназия №32\", Нижнекамск"]
[35,"Галиханова","Дина","Фларитовна","29.11.2009","Ж","нет",6,6,8,40,{"$f":"IF(J:J < 20,\"участник\",IF(J:J < 30, \"Призёр\",IF(J:J < 41, \"Победитель\")))","v":"участник"},"нет","Бадуртдинова Гульшат Ханафиевна","МБОУ \"Гимназия №32\", Нижнекамск"]
[36,"Гатауллина","Сабина","Ленаровна","06.08.2010","Ж","нет",6,6,24,40,{"$f":"IF(J:J < 20,\"участник\",IF(J:J < 30, \"Призёр\",IF(J:J < 41, \"Победитель\")))","v":"Призёр"},"нет","Бадуртдинова Гульшат Ханафиевна","МБОУ \"Гимназия №32\", Нижнекамск"]
[37,"Гилазов","Гумер","Ильназович","25.10.2010","М","нет",6,6,13,40,{"$f":"IF(J:J < 20,\"участник\",IF(J:J < 30, \"Призёр\",IF(J:J < 41, \"Победитель\")))","v":"участник"},"нет","Бадуртдинова Гульшат Ханафиевна","МБОУ \"Гимназия №32\", Нижнекамск"]
[38,"Гильванова","Анна","Артуровна","21.12.2009","Ж","нет",6,6,20,40,{"$f":"IF(J:J < 20,\"участник\",IF(J:J < 30, \"Призёр\",IF(J:J < 41, \"Победитель\")))","v":"Призёр"},"нет","Бадуртдинова Гульшат Ханафиевна","МБОУ \"Гимназия №32\", Нижнекамск"]
[39,"Дербенев","Елисей","Сергеевич","10.06.2010","М","нет",6,6,15,40,{"$f":"IF(J:J < 20,\"участник\",IF(J:J < 30, \"Призёр\",IF(J:J < 41, \"Победитель\")))","v":"участник"},"нет","Бадуртдинова Гульшат Ханафиевна","МБОУ \"Гимназия №32\", Нижнекамск"]
[40,"Захарова","Вероника","Евгеньевна","12.07.2010","Ж","нет",6,6,14,40,{"$f":"IF(J:J < 20,\"участник\",IF(J:J < 30, \"Призёр\",IF(J:J < 41, \"Победитель\")))","v":"участник"},"нет","Бадуртдинова Гульшат Ханафиевна","МБОУ \"Гимназия №32\", Нижнекамск"]
[41,"Зиганшин","Руслан","Рамисович","31.10.2010","М","нет",6,6,25,40,{"$f":"IF(J:J < 20,\"участник\",IF(J:J < 30, \"Призёр\",IF(J:J < 41, \"Победитель\")))","v":"Призёр"},"нет","Бадуртдинова Гульшат Ханафиевна","МБОУ \"Гимназия №32\", Нижнекамск"]
[42,"Знудова","Мария","Александровна","12.01.2010","Ж","нет",6,6,12.5,40,{"$f":"IF(J:J < 20,\"участник\",IF(J:J < 30, \"Призёр\",IF(J:J < 41, \"Победитель\")))","v":"участник"},"нет","Бадуртдинова Гульшат Ханафиевна","МБОУ \"Гимназия №32\", Нижнекамск"]
[43,"Исаева","Даная","Игоревна","22.11.2010","Ж","нет",6,6,35,40,{"$f":"IF(J:J < 20,\"участник\",IF(J:J < 30, \"Призёр\",IF(J:J < 41, \"Победитель\")))","v":"Победитель"},"нет","Бадуртдинова Гульшат Ханафиевна","МБОУ \"Гимназия №32\", Нижнекамск"]
[44,"Крутикова","Ульяна","Сергеевна","12.06.2010","Ж","нет",6,6,7,40,{"$f":"IF(J:J < 20,\"участник\",IF(J:J < 30, \"Призёр\",IF(J:J < 41, \"Победитель\")))","v":"участник"},"нет","Бадуртдинова Гульшат Ханафиевна","МБОУ \"Гимназия №32\", Нижнекамск"]
[45,"Омельченко","Ксения","Сергеевна","11.04.2010","Ж","нет",6,6,33,40,{"$f":"IF(J:J < 20,\"участник\",IF(J:J < 30, \"Призёр\",IF(J:J < 41, \"Победитель\")))","v":"Победитель"},"нет","Бадуртдинова Гульшат Ханафиевна","МБОУ \"Гимназия №32\", Нижнекамск"]
[46,"Панфилова","Софья","Алексеевна","05.04.2010","Ж","нет",6,6,9,40,{"$f":"IF(J:J < 20,\"участник\",IF(J:J < 30, \"Призёр\",IF(J:J < 41, \"Победитель\")))","v":"участник"},"нет","Бадуртдинова Гульшат Ханафиевна","МБОУ \"Гимназия №32\", Нижнекамск"]
[47,"Пузикова","Анастасия","Николаевна","21.12.2010","Ж","нет",6,6,25,40,{"$f":"IF(J:J < 20,\"участник\",IF(J:J < 30, \"Призёр\",IF(J:J < 41, \"Победитель\")))","v":"Призёр"},"нет","Бадуртдинова Гульшат Ханафиевна","МБОУ \"Гимназия №32\", Нижнекамск"]
[48,"Пятибратов","Даниил","Вячеславович","31.10.2010","М","нет",6,6,13,40,{"$f":"IF(J:J < 20,\"участник\",IF(J:J < 30, \"Призёр\",IF(J:J < 41, \"Победитель\")))","v":"участник"},"нет","Бадуртдинова Гульшат Ханафиевна","МБОУ \"Гимназия №32\", Нижнекамск"]
[49,"Сахабутдинов","Искандер","Ильдарович","26.05.2010","М","нет",6,6,6,40,{"$f":"IF(J:J < 20,\"участник\",IF(J:J < 30, \"Призёр\",IF(J:J < 41, \"Победитель\")))","v":"участник"},"нет","Бадуртдинова Гульшат Ханафиевна","МБОУ \"Гимназия №32\", Нижнекамск"]
[50,"Смышляев","Роман","Ильич","01.02.2010","М","нет",6,6,17,40,{"$f":"IF(J:J < 20,\"участник\",IF(J:J < 30, \"Призёр\",IF(J:J < 41, \"Победитель\")))","v":"участник"},"нет","Бадуртдинова Гульшат Ханафиевна","МБОУ \"Гимназия №32\", Нижнекамск"]
[51,"Ситдикова","Сальвина","Ленаровна","27.11.2009","Ж","нет",6,6,25,40,{"$f":"IF(J:J < 20,\"участник\",IF(J:J < 30, \"Призёр\",IF(J:J < 41, \"Победитель\")))","v":"Призёр"},"нет","Бадуртдинова Гульшат Ханафиевна","МБОУ \"Гимназия №32\", Нижнекамск"]
[52,"Хисамиев","Самир","Раилевич","12.08.2010","М","нет",6,6,12,40,{"$f":"IF(J:J < 20,\"участник\",IF(J:J < 30, \"Призёр\",IF(J:J < 41, \"Победитель\")))","v":"участник"},"нет","Бадуртдинова Гульшат Ханафиевна","МБОУ \"Гимназия №32\", Нижнекамск"]
[53,"Чазова","Дарья","Алексеевна","16.12.2009","Ж","нет",6,6,13,40,{"$f":"IF(J:J < 20,\"участник\",IF(J:J < 30, \"Призёр\",IF(J:J < 41, \"Победитель\")))","v":"участник"},"нет","Бадуртдинова Гульшат Ханафиевна","МБОУ \"Гимназия №32\", Нижнекамск"]
[54,"Шеленина","Вероника","Алексеевна","05.08.2010","Ж","нет",6,6,13,40,{"$f":"IF(J:J < 20,\"участник\",IF(J:J < 30, \"Призёр\",IF(J:J < 41, \"Победитель\")))","v":"участник"},"нет","Бадуртдинова Гульшат Ханафиевна","МБОУ \"Гимназия №32\", Нижнекамск"]
[55,"Мустафин","Артём","Харисович","12.09.2009","М","нет",6,6,34,40,"Призер ","нет","Бакеева Альбина Ренатовна","МБОУ \"Гимназия №32\", Нижнекамск"]
[56,"Абдрахманов ","Данис","Ильдарович","27.06.2009","М","нет",7,7,0,40,"Участнник","нет","Голубева СветланаВикторовна","МБОУ \"Гимназия №32\", Нижнекамск"]
[57,"Андреева ","Арина ","Анатольевна","2009-10-31","Ж","нет",7,7,12,40,"Участнник","нет","Голубева СветланаВикторовна","МБОУ \"Гимназия №32\", Нижнекамск"]
[58,"Валиахметова ","Элина ","Ильдусовна","2009-03-28","Ж","нет",7,7,7,40,"Участнник","нет","Голубева СветланаВикторовна","МБОУ \"Гимназия №32\", Нижнекамск"]
[59,"Григорьева ","Татьяна ","Дмитриевна","2009-01-03","Ж","нет",7,7,6,40,"Участнник","нет","Голубева СветланаВикторовна","МБОУ \"Гимназия №32\", Нижнекамск"]
[60,"Дюжин ","Максим","Алексеевич","2009-12-07","М","нет",7,7,11,40,"Участнник","нет","Голубева СветланаВикторовна","МБОУ \"Гимназия №32\", Нижнекамск"]
[61,"Кислицына ","Виктория ","Андреевна","2009-06-08","Ж","нет",7,7,7,40,"Участнник","нет","Голубева СветланаВикторовна","МБОУ \"Гимназия №32\", Нижнекамск"]
[62,"Иванов ","Артем","Евгеньевич","2008-11-07","М","нет",7,7,38,40,"Победитель","нет","Голубева СветланаВикторовна","МБОУ \"Гимназия №32\", Нижнекамск"]
[63,"Инчин","Илья","Владимирович","2009-08-09","М","нет",7,7,1,40,"Участнник","нет","Голубева СветланаВикторовна","МБОУ \"Гимназия №32\", Нижнекамск"]
[64,"Кидрячев","Ярослав ","Ильшатович","2010-01-26","М","нет",7,7,1,40,"Участнник","нет","Голубева СветланаВикторовна","МБОУ \"Гимназия №32\", Нижнекамск"]
[65,"Кунакова ","Диана ","Денисовна","2009-01-01","Ж","нет",7,7,7,40,"Участнник","нет","Голубева СветланаВикторовна","МБОУ \"Гимназия №32\", Нижнекамск"]
[66,"Кислицына","Виктория ","Андреевна","2009-06-08","Ж","нет",7,7,7,40,"Участнник","нет","Голубева СветланаВикторовна","МБОУ \"Гимназия №32\", Нижнекамск"]
[67,"Ларинская ","Снежана","Юрьевна","2009-03-05","Ж","нет",7,7,1,40,"Участнник","нет","Голубева СветланаВикторовна","МБОУ \"Гимназия №32\", Нижнекамск"]
[68,"Настина","Сабрина ","Игоревна","2009-02-04","Ж","нет",7,7,17,40,"Участнник","нет","Голубева СветланаВикторовна","МБОУ \"Гимназия №32\", Нижнекамск"]
[69,"Носков","Ратмир","Константинович","2009-04-09","М","нет",7,7,1,40,"Участнник","нет","Голубева СветланаВикторовна","МБОУ \"Гимназия №32\", Нижнекамск"]
[70,"Палаткина","Кристина ","Вячеславовна","2008-12-19","Ж","нет",7,7,9,40,"Участнник","нет","Голубева СветланаВикторовна","МБОУ \"Гимназия №32\", Нижнекамск"]
[71,"Пятибратова ","Полина ","Вячеславовна","2009-06-16","Ж","нет",7,7,7,40,"Участнник","нет","Голубева СветланаВикторовна","МБОУ \"Гимназия №32\", Нижнекамск"]
[72,"Рязапова","Джаннат","Булатовна","2009-01-04","Ж","нет",7,7,13,40,"Участнник","нет","Голубева СветланаВикторовна","МБОУ \"Гимназия №32\", Нижнекамск"]
[73,"Саушин","Владимир ","Русланович","2010-02-13","М","нет",7,7,2,40,"Участнник","нет","Голубева СветланаВикторовна","МБОУ \"Гимназия №32\", Нижнекамск"]
[74,"Сафина ","Динара ","Руслановна","2008-12-02","Ж","нет",7,7,7,40,"Участнник","нет","Голубева СветланаВикторовна","МБОУ \"Гимназия №32\", Нижнекамск"]
[75,"Сафина ","Камилла","Ильдаровна","2009-06-08","Ж","нет",7,7,10,40,"Участнник","нет","Голубева СветланаВикторовна","МБОУ \"Гимназия №32\", Нижнекамск"]
[76,"Сомов","Ярослав","Сергеевич","2008-12-26","М","нет",7,7,11,40,"Участнник","нет","Голубева СветланаВикторовна","МБОУ \"Гимназия №32\", Нижнекамск"]
[77,"Феопентова ","Евгения ","Сергеевна","2009-04-15","Ж","нет",7,7,5,40,"Участнник","нет","Голубева СветланаВикторовна","МБОУ \"Гимназия №32\", Нижнекамск"]
[78,"Хамидуллина","Диана","Равилевна","2009-03-13","Ж","нет",7,7,11,40,"Участнник","нет","Голубева СветланаВикторовна","МБОУ \"Гимназия №32\", Нижнекамск"]
[79,"Шакиров ","Динар ","Ильдарович","2009-09-13","М","нет",7,7,6,40,"участнник","нет","Голубева СветланаВикторовна","МБОУ \"Гимназия №32\", Нижнекамск"]
[80,"Шафигуллина ","Адиля ","Ренатовна","2009-02-05","Ж","нет",7,7,6,40,"участнник","нет","Голубева СветланаВикторовна","МБОУ \"Гимназия №32\", Нижнекамск"]
[81,"Юлаев ","Дияр ","Денисович","2009-06-06","М","нет",7,7,5,40,"участнник","нет","Голубева СветланаВикторовна","МБОУ \"Гимназия №32\", Нижнекамск"]
[82,"Яфасова ","Дарина","Радиковна","2009-08-30","Ж","нет",7,7,8,40,"участнник","нет","Голубева СветланаВикторовна","МБОУ \"Гимназия №32\", Нижнекамск"]
[83,"Белова","Илона","Дмитриевна","2009-06-08","Ж","нет",7,7,18,40,"Участнник","нет","Щучкина Татьяна Витальевна","МБОУ \"Гимназия №32\", Нижнекамск"]
[84,"Кимаева","Зарина","Рустамовна","18.05.209","Ж","нет",7,7,3,40,"Участнник","нет","Щучкина Татьяна Витальевна","МБОУ \"Гимназия №32\", Нижнекамск"]
[85,"Лаптева","Полина","Сергеевна","2009-08-18","Ж","нет",7,7,18,40,"Участнник","нет","Щучкина Татьяна Витальевна","МБОУ \"Гимназия №32\", Нижнекамск"]
[86,"Мосина","Вероника","Сергеевна","2009-12-03","Ж","нет",7,7,3,40,"Участнник","нет","Щучкина Татьяна Витальевна","МБОУ \"Гимназия №32\", Нижнекамск"]
[87,"Назарова ","Яна","Павловна","20.08.2009","Ж","нет",7,7,20,40,"призер","нет","Щучкина Татьяна Витальевна","МБОУ \"Гимназия №32\", Нижнекамск"]
[88,"Омельченко","Валерия","Андревна","03.08.2009","Ж","нет",7,7,10,40,"Участнник","нет","Щучкина Татьяна Витальевна","МБОУ \"Гимназия №32\", Нижнекамск"]
[89,"Пайгусова","Софья","Александровна","05.09.2009","Ж","нет",7,7,15,40,"Участнник","нет","Щучкина Татьяна Витальевна","МБОУ \"Гимназия №32\", Нижнекамск"]
[90,"Сергеева","Арина","Сергеевна","2009-04-20","Ж","нет",7,7,13,40,"Участнник","нет","Щучкина Татьяна Витальевна","МБОУ \"Гимназия №32\", Нижнекамск"]
[91,"Соловьева","Вероника","Викторовна","2009-07-25","Ж","нет",7,7,15,40,"Участнник","нет","Щучкина Татьяна Витальевна","МБОУ \"Гимназия №32\", Нижнекамск"]
[92,"Якимова","Карина","Александровна","2008-12-20","Ж","нет",7,7,13,40,"Участнник","нет","Щучкина Татьяна Витальевна","МБОУ \"Гимназия №32\", Нижнекамск"]
[93,"Алексеева","Софья","Андреевна","19.10.2009","ж","нет",7,7,15,40,"Участнник","нет","Бакеева Альбина Ренатовна","МБОУ \"Гимназия №32\", Нижнекамск"]
[94,"Аракчеев","Станислав","Сергеевич","2008-10-19","м","нет",7,7,5,40,"Участнник","нет","Бакеева Альбина Ренатовна","МБОУ \"Гимназия №32\", Нижнекамск"]
[95,"Гайнуллин","Адэль","Рамилевич","2008-10-23","м","нет",7,7,4,40,"Участнник","нет","Бакеева Альбина Ринатовна","МБОУ \"Гимназия №32\", Нижнекамск"]
[96,"Зинченко","Данис","Максимович","2009-04-22","м","нет",7,7,2,40,"Участнник","нет","Бакеева Альбина Ринатовна","МБОУ \"Гимназия №32\", Нижнекамск"]
[97,"Марданшина","Лейла","Рустемовна","2009-10-06","ж","нет",7,7,3,40,"Участнник","нет","Бакеева Альбина Ринатовна","МБОУ \"Гимназия №32\", Нижнекамск"]
[98,"Миндубаева","Айсылу ","Рамилевна","2009-10-12","ж","нет",7,7,2,40,"Участнник","нет","Бакеева Альбина Ринатовна","МБОУ \"Гимназия №32\", Нижнекамск"]
[99,"Набиуллин ","Альберт","Ильгизович","2009-10-22","м","нет",7,7,4,40,"Участнник","нет","Бакеева Альбина Ринатовна","МБОУ \"Гимназия №32\", Нижнекамск"]
[100,"Насибуллин ","Наиль","Ниязович","2009-08-24","м","нет",7,7,3,40,"Участнник","нет","Бакеева Альбина Ринатовна","МБОУ \"Гимназия №32\", Нижнекамск"]
[101,"Насибуллина ","Элия","Ильнаровна","2009-06-07","ж","нет",7,7,2,40,"Участнник","нет","Бакеева Альбина Ринатовна","МБОУ \"Гимназия №32\", Нижнекамск"]
[102,"Низамов","Ислам","Ленарович","2009-08-30","м","нет",7,7,8,40,"Участнник","нет","Бакеева Альбина Ринатовна","МБОУ \"Гимназия №32\", Нижнекамск"]
[103,"Парамонова","Виктория","Сергеевна","2009-04-06","м","нет",7,7,2,40,"Участнник","нет","Бакеева Альбина Ринатовна","МБОУ \"Гимназия №32\", Нижнекамск"]
[104,"Ражев","Тимофей","Денисович","2009-06-24","м","нет",7,7,12,40,"Участнник","нет","Бакеева Альбина Ринатовна","МБОУ \"Гимназия №32\", Нижнекамск"]
[105,"Саитова","Ульяна","Константиновна","2009-08-30","ж","нет",7,7,5,40,"Участнник","нет","Бакеева Альбина Ринатовна","МБОУ \"Гимназия №32\", Нижнекамск"]
[106,"Сибгатуллина","Назиля","Ильназовна","2009-04-16","ж","нет",7,7,11,40,"Участнник","нет","Бакеева Альбина Ринатовна","МБОУ \"Гимназия №32\", Нижнекамск"]
[107,"Смоленков","Гордей","Дмитриевич","2009-12-16","м","нет",7,7,6,40,"Участнник","нет","Бакеева Альбина Ринатовна","МБОУ \"Гимназия №32\", Нижнекамск"]
[108,"Турчанинов","Таир","Расимович","2009-05-19","м","нет",7,7,5,40,"Участнник","нет","Бакеева Альбина Ринатовна","МБОУ \"Гимназия №32\", Нижнекамск"]
[109,"Хабибуллин","Карим","Ильнурович","2008-12-18","м","нет",7,7,6,40,"Участнник","нет","Бакеева Альбина Ринатовна","МБОУ \"Гимназия №32\", Нижнекамск"]
[110,"Халиков","Булат","Ильнурович","2009-09-16","м","нет",7,7,4,40,"Участнник","нет","Бакеева Альбина Ринатовна","МБОУ \"Гимназия №32\", Нижнекамск"]
[111,"Халимов","Данис","Ленарович","2009-03-19","ж","нет",7,7,4,40,"Участнник","нет","Бакеева Альбина Ринатовна","МБОУ \"Гимназия №32\", Нижнекамск"]
[112,"Хамидуллина ","Лейсан","Ильнаровна","2009-05-26","ж","нет",7,7,11,40,"Участнник","нет","Бакеева Альбина Ринатовна","МБОУ \"Гимназия №32\", Нижнекамск"]
[113,"Харитонов","Владислав","Александрович","2009-03-31","м","нет",7,7,7,40,"Участнник","нет","Бакеева Альбина Ринатовна","МБОУ \"Гимназия №32\", Нижнекамск"]
[114,"Шапорева","Виктория","Романовна","2009-03-11","ж","нет",7,7,8,40,"Участнник","нет","Бакеева Альбина Ринатовна","МБОУ \"Гимназия №32\", Нижнекамск"]
[115,"Шигапов","Данис","Ильдарович","2009-11-14","м","нет",7,7,4,40,"Участнник","нет","Бакеева Альбина Ринатовна","МБОУ \"Гимназия №32\", Нижнекамск"]
[116,"Ахтямова","Резеда","Азатовна","20.08.2009","Ж","нет",7,7,11,40,"Участнник","нет","Щучкина Татьяна Витальевна","МБОУ \"Гимназия №32\", Нижнекамск"]
[117,"Валиева","Диана","Фанисовна","20.08.2009","Ж","нет",7,7,4,40,"Участнник","нет","Щучкина Татьяна Витальевна","МБОУ \"Гимназия №32\", Нижнекамск"]
[118,"Дьячкова","Елизавета","Владимировна","23.11.2009","Ж","нет",7,7,14,40,"Участнник","нет","Щучкина Татьяна Витальевна","МБОУ \"Гимназия №32\", Нижнекамск"]
[119,"Ильин","Кирилл","Андреевич","25.03.2009","М","нет",7,7,10,40,"Участнник","нет","Щучкина Татьяна Витальевна","МБОУ \"Гимназия №32\", Нижнекамск"]
[120,"Кривошеев","Илья","Олегович","01.06.2009","М","нет",7,7,8,40,"Участнник","нет","Щучкина Татьяна Витальевна","МБОУ \"Гимназия №32\", Нижнекамск"]
[121,"Савельева","Милана","Владимировна","07.07.2009","Ж","нет",7,7,8,40,"Участнник","нет","Щучкина Татьяна Витальевна","МБОУ \"Гимназия №32\", Нижнекамск"]
[122,"Салахутдинова","Данэля","Ринатовна","17.08.2009","Ж","нет",7,7,6,40,"Участнник","нет","Щучкина Татьяна Витальевна","МБОУ \"Гимназия №32\", Нижнекамск"]
[123,"Сиянко","Арина","Витальевна","06.07.2009","Ж","нет",7,7,13,40,"Участнник","нет","Щучкина Татьяна Витальевна","МБОУ \"Гимназия №32\", Нижнекамск"]
[124,"Тимочкин","Богдан","Сергеевич","18.11.2008","М","нет",7,7,8,40,"Участнник","нет","Щучкина Татьяна Витальевна","МБОУ \"Гимназия №32\", Нижнекамск"]
[125,"Филиппова","Анастасия","Дмитриевна","21.03.2009","Ж","нет",7,7,6,40,"Участнник","нет","Щучкина Татьяна Витальевна","МБОУ \"Гимназия №32\", Нижнекамск"]
[126,"Альбикова","Диана","Дамировна","2009-10-23","Ж","нет",7,7,5,40,"участнник","нет","Никитина Кристина Сергеевна","МБОУ \"Гимназия №32\", Нижнекамск"]
[127,"Атоджанов","Даниил","Тимурович","2009-01-30","М","нет",7,7,1,40,"участнник","нет","Никитина Кристина Сергеевна","МБОУ \"Гимназия №32\", Нижнекамск"]
[128,"Белоусова","Светлана","Юрьевна","2009-05-18","Ж","нет",7,7,1,40,"участнник","нет","Никитина Кристина Сергеевна","МБОУ \"Гимназия №32\", Нижнекамск"]
[129,"Вафина ","Карина","Рамисовна","2009-12-09","Ж","нет",7,7,2,40,"участнник","нет","Никитина Кристина Сергеевна","МБОУ \"Гимназия №32\", Нижнекамск"]
[130,"Галеева","Дарина","Айдаровна","2009-06-11","Ж","нет",7,7,1,40,"участнник","нет","Никитина Кристина Сергеевна","МБОУ \"Гимназия №32\", Нижнекамск"]
[131,"Галимова","Азалия","Зуфаровна","2009-03-04","Ж","нет",7,7,1,40,"участнник","нет","Никитина Кристина Сергеевна","МБОУ \"Гимназия №32\", Нижнекамск"]
[132,"Гарифуллин","Амир","Артурович","2009-05-12","М","нет",7,7,2,40,"участнник","нет","Никитина Кристина Сергеевна","МБОУ \"Гимназия №32\", Нижнекамск"]
[133,"Гафуров","Адель","Альбертович","2009-06-29","М","нет",7,7,3,40,"участнник","нет","Никитина Кристина Сергеевна","МБОУ \"Гимназия №32\", Нижнекамск"]
[134,"Гильмутдинов","Ратмир","Маратович","2009-01-16","М","нет",7,7,1,40,"участнник","нет","Никитина Кристина Сергеевна","МБОУ \"Гимназия №32\", Нижнекамск"]
[135,"Гиниятов","Нияз","Наилевич","2009-06-03","М","нет",7,7,3,40,"участнник","нет","Никитина Кристина Сергеевна","МБОУ \"Гимназия №32\", Нижнекамск"]
[136,"Давлетханова","Далия","Альбертовна","2009-08-28","Ж","нет",7,7,2,40,"Участнник","нет","Никитина Кристина Сергеевна","МБОУ \"Гимназия №32\", Нижнекамск"]
[137,"Данилова","Анна","Геннадьевна","2009-01-09","Ж","нет",7,7,1,40,"Участнник","нет","Никитина Кристина Сергеевна","МБОУ \"Гимназия №32\", Нижнекамск"]
[138,"Единая","Анна","Васильевна","2009-03-24","Ж","нет",7,7,9,40,"Участнник","нет","Никитина Кристина Сергеевна","МБОУ \"Гимназия №32\", Нижнекамск"]
[139,"Ермолин","Андрей","Дмитриевич","2008-11-09","М","нет",7,7,1,40,"Участнник","нет","Никитина Кристина Сергеевна","МБОУ \"Гимназия №32\", Нижнекамск"]
[140,"Зиганшина","Рената","Радиковна","2009-12-13","Ж","нет",7,7,8,40,"Участнник","нет","Никитина Кристина Сергеевна","МБОУ \"Гимназия №32\", Нижнекамск"]
[141,"Зотина","Диана","Денисовна","2009-03-18","Ж","нет",7,7,1,40,"Участнник","нет","Никитина Кристина Сергеевна","МБОУ \"Гимназия №32\", Нижнекамск"]
[142,"Косолапова","Маргарита","Артемовна","2009-07-20","Ж","нет",7,7,3,40,"Участнник","нет","Никитина Кристина Сергеевна","МБОУ \"Гимназия №32\", Нижнекамск"]
[143,"Кузнецова","Арина","Константиновна","2009-09-29","Ж","нет",7,7,15,40,"Участнник","нет","Никитина Кристина Сергеевна","МБОУ \"Гимназия №32\", Нижнекамск"]
[144,"Магдиева","Самира","Рамилевна","2009-09-28","Ж","нет",7,7,1,40,"Участнник","нет","Никитина Кристина Сергеевна","МБОУ \"Гимназия №32\", Нижнекамск"]
[145,"Маратканова","София","Александровна","2009-08-14","Ж","нет",7,7,3,40,"Участнник","нет","Никитина Кристина Сергеевна","МБОУ \"Гимназия №32\", Нижнекамск"]
[146,"Маркелов","Тимур","Валерьевич","2009-04-14","М","нет",7,7,1,40,"Участнник","нет","Никитина Кристина Сергеевна","МБОУ \"Гимназия №32\", Нижнекамск"]
[147,"Матвеева","Маргарита","Юрьевна","2009-06-29","Ж","нет",7,7,2,40,"Участнник","нет","Никитина Кристина Сергеевна","МБОУ \"Гимназия №32\", Нижнекамск"]
[148,"Савельев","Артем","Андреевич","2009-04-01","М","нет",7,7,5,40,"Участнник","нет","Никитина Кристина Сергеевна","МБОУ \"Гимназия №32\", Нижнекамск"]
[149,"Сафин","Амир","Ирекович","2009-07-07","М","нет",7,7,1,40,"Участнник","нет","Никитина Кристина Сергеевна","МБОУ \"Гимназия №32\", Нижнекамск"]
[150,"Сулейманов","Булат","Рамилевич","2009-07-29","М","нет",7,7,14,40,"Участнник","нет","Никитина Кристина Сергеевна","МБОУ \"Гимназия №32\", Нижнекамск"]
[151,"Федоров","Нариман","Русланович","2008-11-05","М","нет",7,7,0,40,"Участнник","нет","Никитина Кристина Сергеевна","МБОУ \"Гимназия №32\", Нижнекамск"]
[152,"Шайдуллина","Марьям","Ильнаровна","2009-01-13","Ж","нет",7,7,1,40,"Участнник","нет","Никитина Кристина Сергеевна","МБОУ \"Гимназия №32\", Нижнекамск"]
[153,"Алексеев","Матвей","Алексеевич","15.09.2008","М","нет",8,8,1,40,"Участнник","нет","Пузикова Ольга Сергеевна","МБОУ \"Гимназия №32\", Нижнекамск"]
[154,"Артемьева","Арина","Викторовна","21.07.2008","Ж","нет",8,8,4,40,"Участнник","нет","Пузикова Ольга Сергеевна","МБОУ \"Гимназия №32\", Нижнекамск"]
[155,"Батталова","Зарина","Денисовна","14.04.2008","Ж","нет",8,8,8,40,"Участнник","нет","Пузикова Ольга Сергеевна","МБОУ \"Гимназия №32\", Нижнекамск"]
[156,"Булаев","Тимур","Андреевич","30.07.2008","М","нет",8,8,12,40,"Участнник","нет","Пузикова Ольга Сергеевна","МБОУ \"Гимназия №32\", Нижнекамск"]
[157,"Вдовин","Роман","Максимович","29.11.2007","М","нет",8,8,2,40,"Участнник","нет","Пузикова Ольга Сергеевна","МБОУ \"Гимназия №32\", Нижнекамск"]
[158,"Галимова","Диляра","Альбертовна","07.08.2008","Ж","нет",8,8,13,40,"Участнник","нет","Пузикова Ольга Сергеевна","МБОУ \"Гимназия №32\", Нижнекамск"]
[159,"Гладков","Александр","Алексеевич","17.03.2008","М","нет",8,8,8,40,"Участнник","нет","Пузикова Ольга Сергеевна","МБОУ \"Гимназия №32\", Нижнекамск"]
[160,"Давыдов","Денис","Игоревич","28.09.2008","М","нет",8,8,6,40,"Участнник","нет","Пузикова Ольга Сергеевна","МБОУ \"Гимназия №32\", Нижнекамск"]
[161,"Егорова","Арина","Андреевна","03.09.2008","Ж","нет",8,8,10,40,"Участнник","нет","Пузикова Ольга Сергеевна","МБОУ \"Гимназия №32\", Нижнекамск"]
[162,"Зиганшина","Лейсан","Ниязовна","04.08.2008","Ж","нет",8,8,19,40,"Участнник","нет","Пузикова Ольга Сергеевна","МБОУ \"Гимназия №32\", Нижнекамск"]
[163,"Зиганшин","Равиль","Ниязович","04.08.2008","М","нет",8,8,6,40,"Участнник","нет","Пузикова Ольга Сергеевна","МБОУ \"Гимназия №32\", Нижнекамск"]
[164,"Кабиров","Ильназ","Ильфатович","21.02.2008","М","нет",8,8,5,40,"Участнник","нет","Пузикова Ольга Сергеевна","МБОУ \"Гимназия №32\", Нижнекамск"]
[165,"Кагарманова","Ульяна","Вадимовна","07.03.2008","Ж","нет",8,8,5,40,"Участнник","нет","Пузикова Ольга Сергеевна","МБОУ \"Гимназия №32\", Нижнекамск"]
[166,"Калимулин","Радмир","Халилевич","15.09.2008","М","нет",8,8,1,40,"Участнник","нет","Пузикова Ольга Сергеевна","МБОУ \"Гимназия №32\", Нижнекамск"]
[167,"Кириллов","Евгений","Романович","11.04.2008","М","нет",8,8,3,40,"Участнник","нет","Пузикова Ольга Сергеевна","МБОУ \"Гимназия №32\", Нижнекамск"]
[168,"Китанов","Вячеслав","Александрович","15.11.2008","М","нет",8,8,4,40,"Участнник","нет","Пузикова Ольга Сергеевна","МБОУ \"Гимназия №32\", Нижнекамск"]
[169,"Лисин","Константин","Романович","30.10.2008","М","нет",8,8,2,40,"Участнник","нет","Пузикова Ольга Сергеевна","МБОУ \"Гимназия №32\", Нижнекамск"]
[170,"Мингазеева","Сафина","Рамилевна","06.01.2008","Ж","нет",8,8,17,40,"Участнник","нет","Пузикова Ольга Сергеевна","МБОУ \"Гимназия №32\", Нижнекамск"]
[171,"Найденко","Татьяна","Викторовна","18.09.2008","Ж","нет",8,8,1,40,"Участнник","нет","Пузикова Ольга Сергеевна","МБОУ \"Гимназия №32\", Нижнекамск"]
[172,"Николашина","Арина","Андреевна","04.10.2008","Ж","нет",8,8,1,40,"Участнник","нет","Пузикова Ольга Сергеевна","МБОУ \"Гимназия №32\", Нижнекамск"]
[173,"Нуриманов","Эмиль","Рафаэлевич","05.07.2008","М","нет",8,8,2,40,"Участнник","нет","Пузикова Ольга Сергеевна","МБОУ \"Гимназия №32\", Нижнекамск"]
[174,"Нырков","Владислав","Евгеньевич","30.07.2008","М","нет",8,8,1,40,"Участнник","нет","Пузикова Ольга Сергеевна","МБОУ \"Гимназия №32\", Нижнекамск"]
[175,"Пашин","Максим","Алексеевич","13.06.2008","М","нет",8,8,4,40,"Участнник","нет","Пузикова Ольга Сергеевна","МБОУ \"Гимназия №32\", Нижнекамск"]
[176,"Сабирова","Камилла","Станиславовна","01.04.2008","Ж","нет",8,8,4,40,"Участнник","нет","Пузикова Ольга Сергеевна","МБОУ \"Гимназия №32\", Нижнекамск"]
[177,"Сазонова","Айшат","Павловна","19.07.2008","Ж","нет",8,8,3,40,"Участнник","нет","Пузикова Ольга Сергеевна","МБОУ \"Гимназия №32\", Нижнекамск"]
[178,"Талипов","Камиль","Марселевич","13.10.2007","М","нет",8,8,1,40,"Участнник","нет","Пузикова Ольга Сергеевна","МБОУ \"Гимназия №32\", Нижнекамск"]
[179,"Фассахутдинова","Лэйла","Ленаровна","01.11.2008","Ж","нет",8,8,18,40,"Участнник","нет","Пузикова Ольга Сергеевна","МБОУ \"Гимназия №32\", Нижнекамск"]
[180,"Шайдуллин","Равиль","Разилович","07.02.2008","М","нет",8,8,6,40,"Участнник","нет","Пузикова Ольга Сергеевна","МБОУ \"Гимназия №32\", Нижнекамск"]
[181,"Шамгунова","Камила","Рустамовна","06.05.2008","Ж","нет",8,8,11,40,"Участнник","нет","Пузикова Ольга Сергеевна","МБОУ \"Гимназия №32\", Нижнекамск"]
[182,"Гришина","Анастасия","Кирилловна","13.09.2007","Ж","нет",9,9,13,100,"Участник","нет","Щучкина Татьяна Витальевна","МБОУ \"Гимназия №32\", Нижнекамск"]
[183,"Зарубина","Елизавета","Дмитриевна","18.02.2007","Ж","нет",9,9,13,100,"Участник","нет","Щучкина Татьяна Витальевна","МБОУ \"Гимназия №32\", Нижнекамск"]
[184,"Кошкин","Егор","Александрович","01.10.2007","М","нет",9,9,8,100,"Участник","нет","Щучкина Татьяна Витальевна","МБОУ \"Гимназия №32\", Нижнекамск"]
[185,"Лисин","Станислав","Романович","03.01.2007","М","нет",9,9,45,100,"Участник","нет","Щучкина Татьяна Витальевна","МБОУ \"Гимназия №32\", Нижнекамск"]
[186,"Мавликова","Самира","Руслановна","22.07.2007","Ж","нет",9,9,10,100,"Участник","нет","Щучкина Татьяна Витальевна","МБОУ \"Гимназия №32\", Нижнекамск"]
[187,"Нигметзянова","Камила","Рамилевна","30.04.2007","Ж","нет",9,9,13,100,"Участник","нет","Щучкина Татьяна Витальевна","МБОУ \"Гимназия №32\", Нижнекамск"]
[188,"Пророков","Александр","Дмитриевич","09.08.2007","М","нет",9,9,8,100,"Участник","нет","Щучкина Татьяна Витальевна","МБОУ \"Гимназия №32\", Нижнекамск"]
[189,"Скрынник","Дмитрий","Николаевич","29.10.2007","М","нет",9,9,10,100,"Участник","нет","Щучкина Татьяна Витальевна","МБОУ \"Гимназия №32\", Нижнекамск"]
[190,"Сулейманов","Артур","Рустемович","01.09.2007","М","нет",9,9,40,100,"Участник","да","Щучкина Татьяна Витальевна","МБОУ \"Гимназия №32\", Нижнекамск"]
[191,"Чадаев","Роман","Владимирович","22.04.2007","М","нет",9,9,20,100,"Участник","нет","Щучкина Татьяна Витальевна","МБОУ \"Гимназия №32\", Нижнекамск"]
[192,"Атарская","Дарья","Евгеньевна","26.06.2006","Ж","нет",10,10,8,100,"Участник","нет","Щучкина Татьяна Витальевна","МБОУ \"Гимназия №32\", Нижнекамск"]
[193,"Ахмадуллина","Динара","Рустемовна","2006-03-30","Ж","нет",10,10,15,100,"Участник","нет","Щучкина Татьяна Витальевна","МБОУ \"Гимназия №32\", Нижнекамск"]
[194,"Володина","Светлана","Дмитриевна","2006-08-24","Ж","нет",10,10,20,100,"Участник","нет","Щучкина Татьяна Витальевна","МБОУ \"Гимназия №32\", Нижнекамск"]
[195,"Гильфанов","Ислам","Рустамович","2006-12-17","М","нет",10,10,8,100,"Участник","нет","Щучкина Татьяна Витальевна","МБОУ \"Гимназия №32\", Нижнекамск"]
[196,"Потапова","Полина","Сергеевна","2006-09-19","Ж","нет",10,10,8,100,"Участник","нет","Щучкина Татьяна Витальевна","МБОУ \"Гимназия №32\", Нижнекамск"]
[197,"Сатенаев","Илья","Дмитриевич","2005-10-21","М","нет",10,10,15,100,"Участник","нет","Щучкина Татьяна Витальевна","МБОУ \"Гимназия №32\", Нижнекамск"]
[198,"Ухова","Дарья","Александровна","2006-07-27","Ж","нет",10,10,15,100,"Участник","нет","Щучкина Татьяна Витальевна","МБОУ \"Гимназия №32\", Нижнекамск"]
[199,"Хамитова","Диана","Маратовна","2005-11-29","Ж","нет",10,10,20,100,"Участник","нет","Щучкина Татьяна Витальевна","МБОУ \"Гимназия №32\", Нижнекамск"]
[200,"Шляхтина","Анастасия","Дмитриевна","2006-07-20","Ж","нет",10,10,25,100,"Участник","нет","Щучкина Татьяна Витальевна","МБОУ \"Гимназия №32\", Нижнекамск"]
[201,"Фриккель","Владислав","Янович","2006-04-04","М","нет",10,10,76,100,"Победитель","нет","Клипова Наталья Александровна","МБОУ \"Гимназия №32\", Нижнекамск"]
[202,"Абрамов","Никита","Сергеевич","06.02.2005","М","нет",11,11,40,100,"Участник","нет","Бадуртдинова  Гульшат Ханафиевна","МБОУ \"Гимназия №32\", Нижнекамск"]
[203,"Велитова","Алина","Алмазовна","21.07.2005","Ж","нет",11,11,35,100,"Участник","нет","Бадуртдинова  Гульшат Ханафиевна","МБОУ \"Гимназия №32\", Нижнекамск"]
[204,"Власьева","Анастасия","Сергеевна","13.10.2005","Ж","нет",11,11,20,100,"Участник","нет","Бадуртдинова  Гульшат Ханафиевна","МБОУ \"Гимназия №32\", Нижнекамск"]
[205,"Зиганшина","Динара","Рустамовна","23.09.2005","Ж","нет",11,11,45,100,"Участник","нет","Бадуртдинова  Гульшат Ханафиевна","МБОУ \"Гимназия №32\", Нижнекамск"]
[206,"Киршина","Наталья","Павловна","2005-06-04","Ж","нет",11,11,20,100,"Участник","нет","Бадуртдинова  Гульшат Ханафиевна","МБОУ \"Гимназия №32\", Нижнекамск"]
[207,"Красильников","Владимир","Сергеевич","03.10.2005","М","нет",11,11,30,100,"Участник","нет","Бадуртдинова  Гульшат Ханафиевна","МБОУ \"Гимназия №32\", Нижнекамск"]
[208,"Мухтарова","Дарья","Андреевна","08.09.2005","Ж","нет",11,11,25,100,"Участник","нет","Бадуртдинова  Гульшат Ханафиевна","МБОУ \"Гимназия №32\", Нижнекамск"]
[209,"Охотникова","Дарья","Николаевна","2005-07-03","Ж","нет",11,11,25,100,"Участник","нет","Бадуртдинова  Гульшат Ханафиевна","МБОУ \"Гимназия №32\", Нижнекамск"]
[210,"Фатхутдинова","Рената","Айратовна","2005-10-12","Ж","нет",11,11,30,100,"Участник","нет","Бадуртдинова  Гульшат Ханафиевна","МБОУ \"Гимназия №32\", Нижнекамск"]
[211,"Фомина","Варвара","Евгеньевна","2004-12-06","Ж","нет",11,11,15,100,"Участник","нет","Бадуртдинова  Гульшат Ханафиевна","МБОУ \"Гимназия №32\", Нижнекамск"]
[212,"Хуснуллина","Яна","Артуровна","2005-09-25","Ж","нет",11,11,14,100,"Участник","нет","Бадуртдинова  Гульшат Ханафиевна","МБОУ \"Гимназия №32\", Нижнекамск"]
[213,"Шумкова","Мария","Владимировна","2005-11-20","Ж","нет",11,11,77,100,"Победитель","нет","Бадуртдинова  Гульшат Ханафиевна","МБОУ \"Гимназия №32\", Нижнекамск"]
[214,"Юсупова","Полина","Руслановна","09.11.2005","Ж","нет",11,11,20,100,"Участник","нет","Бадуртдинова  Гульшат Ханафиевна","МБОУ \"Гимназия №32\", Нижнекамск"]
[215,"Якушева","Валерия","Юрьевна","18.05.2005","Ж","нет",11,11,47,100,"Участник","нет","Бадуртдинова  Гульшат Ханафиевна","МБОУ \"Гимназия №32\", Нижнекамск"]